Cogmind - Beta 9.2 @@@ ROGUE MODE // 2019.11.20 @ 19:10:03 Player: Aaron Result: Destroyed by G-34 Mercenary with Small Laser Performance ------------- Evolutions (1) 500 Regions Visited (3) 600 Robots Destroyed (26) 130 Value Destroyed (503) 503 Prototype IDs (3) 60 Alien Tech Used (0) 0 Bonus (0) 0 TOTAL SCORE: 1793 Bonus ------- None Cogmind --------- Core Integrity 0/400 Matter 249/300 Energy 59/100 System Corruption 0% Temperature Cool (6) Movement Core (50) Location -9/Materials Parts ------- > --- POWER (1) -------- (None) > --- PROPULSION (3) --- (None) > --- UTILITY (3) ------ Improved Terrain Scanner > --- WEAPON (2) ------- Light Assault Rifle > --- INVENTORY (4) ---- (None) Peak State ------------ > --- POWER ------------ Light Ion Engine > --- PROPULSION ------- Flight Unit Flight Unit Flight Unit > --- UTILITY ---------- Improved Terrain Scanner ECM Suite > --- WEAPON ----------- Beam Rifle Mini Grenade Launcher > --- INVENTORY -------- Light Assault Rifle [Rating: 11] Favorites ----------- Power Light Ion Engine Engine Light Ion Engine Propulsion Flight Unit Wheel Wheel Flight Unit Flight Unit Utility Improved Terrain Scanner Device Improved Terrain Scanner Storage Small Storage Unit Weapon Small Laser Energy Gun Small Laser Ballistic Gun Light Assault Rifle Launcher Mini Grenade Launcher Build | -11 -10 -10 -9 ------- Run | Scr Mat Min Mat Slots Evolved 2 | . . . 2 Power . | . . . . Propulsion 1 | . . . 1 Utility 1 | . . . 1 Weapon . | . . . . Parts Attached 24 | 9 6 3 6 Power 4 | 2 1 1 . Engine 4 | 2 1 1 . Core . | . . . . Reactor . | . . . . Propulsion 7 | 3 2 1 1 Treads . | . . . . Leg . | . . . . Wheel 3 | 3 . . . Hover . | . . . . Flight 4 | . 2 1 1 Utility 3 | 2 1 . . Device 2 | 1 1 . . Storage 1 | 1 . . . Processor . | . . . . Hackware . | . . . . Protection . | . . . . Artifact . | . . . . Weapon 10 | 2 2 1 5 Energy Gun 3 | 2 . . 1 Energy Cannon . | . . . . Ballistic Gun 5 | . 2 1 2 Ballistic Cannon . | . . . . Launcher 2 | . . . 2 Special Weapon . | . . . . Impact Weapon . | . . . . Slashing Weapon . | . . . . Piercing Weapon . | . . . . Special Melee Weapon . | . . . . Unidentified Prototypes . | . . . . Parts Lost 12 | . 1 3 8 Power 2 | . . 1 1 Propulsion 4 | . . 1 3 Utility 1 | . . . 1 Weapon 5 | . 1 1 3 Highest Loss Streak 7 | . 1 2 7 Average Slot Usage (%) 94 | . 98 94 67 Engine 12 | . 14 12 8 Wheel 5 | . 11 . . Flight 20 | . 16 26 22 Device 24 | . 21 28 21 Storage 3 | . 5 . . Energy Gun 15 | . 19 14 3 Ballistic Gun 9 | . 8 12 5 Naked Turns . | . . . . Heaviest Build 12 | 12 12 7 9 Greatest Support 26 | 26 20 8 12 Greatest Overweight (x) 3 | . 3 . 2 Average Overweight (x) . | . . . . Largest Inventory Capacity 6 | 6 6 4 4 Average Capacity 4 | 5 4 4 4 Most Carried 5 | 4 5 4 2 Average Carried 2 | 1 2 3 . Final Capacity 6 | 6 4 4 4 Final Carried 3 | 2 3 2 . Class Distribution -------------------- 63% | Scavenger-Mutant 36% | Mutant Dominant Class ---------------- Scavenger-Mutant | -10/Materials Scavenger-Mutant | -10/Mines Scavenger-Mutant | -9/Materials Resources | -11 -10 -10 -9 ----------- Run | Scr Mat Min Mat Matter Collected 493 | 201 144 47 101 Remotely . | . . . . Salvage Created 596 | 146 40 69 341 Parts 57 | 19 8 1 29 Haulers Intercepted . | . . . . Recyclers Shooed . | . . . . Parts Field Recycled . | . . . . Retrieved Matter . | . . . . Parts Self-Destructed . | . . . . Prevented . | . . . . Kills | -11 -10 -10 -9 ------- Run | Scr Mat Min Mat Combat Hostiles Destroyed 16 | . 3 3 10 Guns 7 | . 3 3 1 AOE 9 | . . . 9 Classes Destroyed 9 | 2 1 4 2 Worker 1 | . . . 1 Builder 1 | . . 1 . Tunneler 6 | 5 . . 1 Recycler 2 | 1 . . 1 Swarmer 6 | . 3 . 3 Grunt 6 | . . 1 5 Sentry 2 | . . . 2 Demolisher 1 | . . 1 . Assembled 1 | . . 1 . Best Kill Streak 5 | 5 3 1 5 Combat Bots Only 5 | . 3 1 5 Max Kills in Single Turn 4 | 1 1 1 4 Gunslinging . | . . . . Exploded 2 | . . . 2 Melee . | . . . . Uniques/NPCs Destroyed . | . . . . Combat | -11 -10 -10 -9 -------- Run | Scr Mat Min Mat Damage Taken 1011 | . 130 217 664 Core 460 | . 23 27 410 Absorbed by Shields . | . . . . Core Remaining (%) 90 | 100 . 80 . Volleys Fired 75 | 20 11 19 25 Largest 2 | 2 2 2 2 Hottest 86 | 80 80 60 86 Shots Fired 125 | 40 18 35 32 Gun 114 | 40 18 35 21 Cannon . | . . . . Launcher 11 | . . . 11 Special . | . . . . Kinetic 40 | . 4 19 17 Thermal 74 | 40 14 16 4 Explosive 11 | . . . 11 Electromagnetic . | . . . . Robot Hit Streak 7 | 6 4 4 7 Robot Miss Streak 5 | 3 5 2 2 Penetration Max . | . . . . Secondary Targets 1 | . 1 . . Max Gunslinging Chain 1 | . 1 . . Shots Hit Robots 73 | 23 8 19 23 Core Hits 45 | 7 3 8 27 Critical Hits . | . . . . Critical Kills . | . . . . Critical Parts Destroyed . | . . . . Melee Attacks . | . . . . Impact . | . . . . Slashing . | . . . . Piercing . | . . . . Sneak Attacks . | . . . . Combat Hostiles . | . . . . Follow-up Attacks . | . . . . Damage Inflicted 1363 | 244 102 184 833 Guns 636 | 244 102 184 106 Cannons . | . . . . Explosions 727 | . . . 727 Melee . | . . . . Ramming . | . . . . Kinetic 150 | . 9 78 63 Thermal 486 | 244 93 106 43 Explosive 727 | . . . 727 Electromagnetic . | . . . . Impact . | . . . . Slashing . | . . . . Piercing . | . . . . Highest Corruption . | . . . . Average Corruption . | . . . . Corruption Purged . | . . . . Overload Shots . | . . . . Overflow Damage 22 | . . . 22 Projectiles . | . . . . Explosions 22 | . . . 22 Melee . | . . . . Knockbacks . | . . . . Impact . | . . . . Kinetic . | . . . . Secondary . | . . . . Self-Inflicted Damage 59 | . . . 59 Shots 3 | . . . 3 Rammed . | . . . . Targets Rammed . | . . . . Kicked . | . . . . Crushed . | . . . . Highest Temperature 270 | 270 54 86 82 Average Temperature 69 | 133 29 27 22 Received Heat Transfer 204 | . . 36 168 Effects 1 | 1 . . . Energy Bleed 1 | 1 . . . Siege Activations . | . . . . Robots Corrupted . | . . . . Combat Hostiles . | . . . . Parts Fried . | . . . . Impact Corruptions . | . . . . Robots Melted . | . . . . Combat Hostiles . | . . . . Parts Melted . | . . . . Heat Transferred 1136 | 550 225 250 111 Parts Sabotaged . | . . . . Parts Stolen . | . . . . Parts Stripped . | . . . . Power Chain Reactions . | . . . . Missiles Intercepted . | . . . . Alert | -11 -10 -10 -9 ------- Run | Scr Mat Min Mat Peak Influence 277 | 30 79 38 277 Average Influence 28 | 12 15 11 185 Maximum Alert Level 1 | . . . 1 Low Security (%) 94 | 100 100 100 38 Level 1 5 | . . . 61 Level 2 . | . . . . Level 3 . | . . . . Level 4 . | . . . . Level 5 . | . . . . High Security . | . . . . Max Security . | . . . . Squads Dispatched 2 | . 2 . . Investigation 1 | . 1 . . Extermination . | . . . . Reinforcement 1 | . 1 . . Assault . | . . . . Garrison . | . . . . Intercept . | . . . . Construction Impeded . | . . . . Haulers Reinforced . | . . . . Stealth | -11 -10 -10 -9 --------- Run | Scr Mat Min Mat Distress Signals 1 | . . 1 . Communications Jammed . | . . . . Distress Signals . | . . . . Times Spotted 28 | . 8 5 15 Peak Tracking Total 6 | . 4 2 6 Tactical Retreats 3 | . . 1 2 Traps | -11 -10 -10 -9 ------- Run | Scr Mat Min Mat Traps Triggered 1 | . 1 . . Indirectly . | . . . . Trap Hack Attempts . | . . . . Triggered . | . . . . Disarmed . | . . . . Reprogrammed . | . . . . Reused . | . . . . Traps Extracted . | . . . . Installed . | . . . . Triggered . | . . . . Machines | -11 -10 -10 -9 ---------- Run | Scr Mat Min Mat Machines Disabled 1 | . . . 1 Max in Single Turn 1 | . . . 1 Machines Sabotaged . | . . . . Garrisons Compromised . | . . . . Overloaded Fab Kills . | . . . . Fab Network Shutdowns . | . . . . Hacking | -11 -10 -10 -9 --------- Run | Scr Mat Min Mat Machines Accessed 5 | . 4 1 . Terminals 5 | . 4 1 . Fabricators . | . . . . Repair Stations . | . . . . Recycling Units . | . . . . Scanalyzers . | . . . . Garrison Access . | . . . . Total Hacks 13 | . 10 3 . Successful 7 | . 5 2 . Failed 6 | . 5 1 . Catastrophic 1 | . 1 . . Database Lockouts . | . . . . Manual . | . . . . Terminals 13 | . 10 3 . Fabricators . | . . . . Repair Stations . | . . . . Recycling Units . | . . . . Scanalyzers . | . . . . Garrison Access . | . . . . Terminal Hacks 7 | . 5 2 . Record 1 | . . 1 . Prototype ID Bank 1 | . 1 . . Alert Level 1 | . 1 . . Dispatch Records 1 | . 1 . . Recall Investigation 1 | . 1 . . Registered Components 1 | . 1 . . Zone Layout 1 | . . 1 . Fabricator Hacks . | . . . . Repair Station Hacks . | . . . . Recycling Unit Hacks . | . . . . Scanalyzer . | . . . . Garrison Access Hacks . | . . . . Unauthorized Hacks . | . . . . Terminals . | . . . . Fabricators . | . . . . Repair Stations . | . . . . Recycling Units . | . . . . Scanalyzers . | . . . . Garrison Access . | . . . . Data Cores Recovered . | . . . . Used . | . . . . Hacking Detections 4 | . 3 1 . Full Trace Events . | . . . . Feedback Events . | . . . . Feedback Blocked . | . . . . Robot Schematics Acquired . | . . . . Robots Built . | . . . . Matter . | . . . . Time . | . . . . Total Robot Build Rating . | . . . . Part Schematics Acquired . | . . . . Parts Built . | . . . . Matter . | . . . . Time . | . . . . Total Part Build Rating . | . . . . Parts Repaired . | . . . . Time . | . . . . Parts Recycled . | . . . . Recycled Matter . | . . . . Retrieved Matter . | . . . . Retrieved Components . | . . . . Parts Scanalyzed . | . . . . Part Schematics Acquired . | . . . . Parts Damaged . | . . . . Bothacking | -11 -10 -10 -9 ------------ Run | Scr Mat Min Mat Used RIF Installer . | . . . . Robots Hacked . | . . . . Non-combat . | . . . . Combat . | . . . . Robot Hacks Applied . | . . . . Relay Couplers Released . | . . . . Robots Rewired . | . . . . Allies Hacked . | . . . . Hacks Repelled . | . . . . Allies | -11 -10 -10 -9 -------- Run | Scr Mat Min Mat Total Allies . | . . . . Largest Group . | . . . . Highest-Rated Group . | . . . . Highest-Rated Ally . | . . . . Total Orders . | . . . . Ally Attacks . | . . . . Total Damage . | . . . . Kills . | . . . . Allies Corrupted . | . . . . Allies Melted . | . . . . Intel | -11 -10 -10 -9 ------- Run | Scr Mat Min Mat Robot Analysis Total . | . . . . Derelict Logs Recovered 3 | . . 3 . Drone Launches . | . . . . Drone Recoveries . | . . . . Exploration | -11 -10 -10 -9 ------------- Run | Scr Mat Min Mat Turns Passed 1948 | 115 958 707 168 Spaces Moved 989 | 50 250 557 132 Core 57 | 15 3 . 39 Treads . | . . . . Legs . | . . . . Wheels 89 | 35 54 . . Hover . | . . . . Flight 843 | . 193 557 93 Fastest Speed 34 | 50 37 37 34 Average Speed 42 | 75 48 37 41 Slowest Speed 200 | 90 200 40 150 Overloaded Moves . | . . . . Propulsion Burnouts . | . . . . Robots Hopped 2 | . . 2 . Cave-ins Triggered . | . . . . Exploration Rate (%) 35 | 4 31 95 13 Regions Visited 3 Branch Regions 1 Pre-discovered Areas 2 | . . 2 . Known Exits Taken . | . . . . Unknown Exits Taken 3 | 1 1 1 . Scrap Searched 2 | . . 2 . Spaces Dug . | . . . . Terrain Destroyed 77 | . . . 77 Melee . | . . . . Projectile . | . . . . AOE 77 | . . . 77 Actions | -11 -10 -10 -9 --------- Run | Scr Mat Min Mat Total 2396 | 85 1071 1023 217 Wait 1284 | . 793 445 46 Move 982 | 49 249 552 132 Hop 2 | . . 2 . Pick Up 20 | 7 7 2 4 Fast Attach 2 | 2 . . . Attach 17 | 5 4 3 5 Detach 1 | . . . 1 Swap 5 | 2 2 . 1 Drop 8 | . 5 . 3 Fire 75 | 20 11 19 25 Melee . | . . . . Ram . | . . . . Kick . | . . . . Crush . | . . . . Escape Stasis . | . . . . Rewire . | . . . . Trap . | . . . . Miscellaneous . | . . . . Route ------- -11/Scrapyard -10/Materials (discovered 2 exits: *Min x2) -10/Mines (discovered 2 exits: [*Mat x2]) -9/Materials (discovered 2 exits: Mat x2) History --------- Turn | Location | Event 13 | -11/Scrapyard | Discovered new exit (range 15) 116 | -11/Scrapyard | Entered Materials 303 | -10/Materials | Build established: Mutant 801 | -10/Materials | Build established: Scavenger-Mutant 919 | -10/Materials | Discovered new exit (range 8) 919 | -10/Materials | Discovered new exit (range 10) 1074 | -10/Materials | Entered Mines 1145 | -10/Mines | Assembled infested the area 1150 | -10/Mines | Assisted by a Guerilla fighting off Assembled 1253 | -10/Mines | Found a hidden stash of uninstalled traps 1444 | -10/Mines | Learned 8 Materials zone layouts 1505 | -10/Mines | Learned location of Storage (-7) 1745 | -10/Mines | Discovered new exit (range 10) 1746 | -10/Mines | Learned Materials security intel 1759 | -10/Mines | Discovered new exit (range 8) 1781 | -10/Mines | Entered Materials 1781 | -9/Materials | Evolved 2 slots: Propulsion x1, Utility x1 1782 | -9/Materials | Identified exit to Materials 1913 | -9/Materials | Core integrity fell below 50% 1922 | -9/Materials | Core integrity fell below 20% 1949 | -9/Materials | Destroyed by G-34 Mercenary with Small Laser Last Messages --------------- 01854_ U-05 Engineer lays Concrete. 01878_ G-47 Trooper destroyed. 01880_ The unstable cave ceiling collapses. 01881_ G-34 Mercenary destroyed. 01881_ R-06 Scavenger destroyed. 01881_ K-01 Serf destroyed. 01881_ T-07 Excavator destroyed. 01900_ Beam Rifle destroyed. 01902_ Lgt. Ion Engine destroyed. 01902_ G-34 Mercenary destroyed. 01904_ Acquired 58 matter. 01906_ Flight Unit destroyed. 01908_ Destroyed Flight Unit. 01909_ Flight Unit destroyed. 01910_ Acquired 2 matter. 01911_ Destroyed Imp. Ion Engine. 01916_ Mni. Grenade Launcher destroyed. 01923_ L-31 Rogue destroyed. 01939_ ECM Suite destroyed. 01945_ U-05 Engineer lays Concrete. Map ----- +----------------------------------------------------+ | | | | | | | | | | | ????????#####################?????#?????#????????? | | ????????# ## #????#???#???????????? | | ????????# ## ][ #?#???????#??????#???? | | ????????# ## ][ #?????###????????????? | | ????????# ## ][ #??#### ###??????????? | | ????????# # #?## #???#??????? | | ????????# ## #?# #[ ####???????# | | ????????# ## ### ! ######??? | | ????????# """ #?### # ### ## #??# | | ?######## """ #?### * ## #### | | ?## ## """ #?#! %* ## ## # | | ?# # ###%* [ # % # ## + | | ?# ###+###?# *% " ## # | | ?### # #??## # !# Y ## """ ## #### | | ???# #?????# ## """ ## ##?? | | ???# T ####### k#########+##### #?? | | ######/## ug #?? | | # ## ######## #?? | | # "" ## # #?? | | Y" ## + %[ ####+######+### #?? | | # "" ## # @ # #######?? | | # + ######## ## # """ #??????#? | | ######### ##???#?## ## # """ #???????? | | ??????# #??????# ## # """ #???????? | | ??????# #???#??# ## # #???????? | | ????????????????????# ?# # ????????#????? | | ????????????????????# ?# ##?????????????? | | ??????????????????#?# ?# ##?????????????? | | ????????????????????# ?# #??????????????? | | ?????????????????????????##########??????????????? | | ?????????????????????????????????????????????????? | | ?????????????????????????????????????????#???????? | | ?????????????????????????????????????????????????? | | ?????????????????????????????????????????????????? | | ?????????????????????????????????????????????????? | | ?????????????????????????????????????????????????? | | ?????????????????????????????????????????????????? | | ?????????????????????????????????????????????????? | | ?????????????????????????????????????????????????? | | ?????????????????????????????????????????????????? | | ?????????????????????????????????????????????????? | | ?????????????????????????????????????????????????? | | ?????????????????????????????????????????????????? | | ?????????????????????????????????????????????????? | | ?????????????????????????????????????????????????? | +----------------------------------------------------+ Best States ------------- Heat Dissipation 28 Energy Generation 10 Energy Capacity 250 Matter Stores 300 Matter Capacity 300 Sight Range 16 Terrain Scan Range 16 Terrain Scan Density 10 ECM Strength 1 Evasion (%) 63 Item Schematics ----------------- None Robot Schematics ------------------ None Fabricated ------------ Nothing Alien Tech Used ----------------- None Achievements -------------- GoHome() Challenges ------------ None Game ------ Seed RemoteDisposableAirjet Manual? 0 Play Time 00:27:38 Cumulative 6.0 hours Start 2019.11.20 @ 18:43:27 End 2019.11.20 @ 19:10:03 Sessions 1 Manual Loads 0 Difficulty Rogue Special Mode None Game No. 10 Rogue 10 Adventurer 0 Explorer 0 Win Type - Total 0 Types 0/0/0/0/0/0/0 Lore% 10 Gallery% 9 Achievement% 10 Wizard Run 0 Options --------- ASCII 0 Keyboard 0 Movement Mouse Keybinds 0 Fullscreen 1 Font 18/SmallcapsGlow Map View 76x50 Tactical HUD 1 Map Filters NONE Filters NONE Steam 1 RUN: da6573af-5f26-4b7b-8646-ab05c1e5aa9a